bitfinex-derivatives/quotes_SOLF0:USTF0_20260204
["timestamp","ask_amount","ask_price","bid_price","bid_amount"]
[1770168140811,4.37096012,99.361,99.303,4.15469411]
[1770168141013,9.0711,99.36,99.306,13.27032453]
[1770168142112,9.0711,99.36,99.307,4.19442453]
[1770168142713,4.1445585,99.357,99.261,141.2464]
[1770168142914,4.1445585,99.349,99.273,4.19442453]
[1770168143411,4.1445585,99.349,99.276,4.19442453]
[1770168143609,4.1445585,99.349,99.28,4.19442453]
[1770168143811,4.1445585,99.369,99.289,4.19442453]
[1770168144017,4.1445585,99.364,99.3,4.19442453]
[1770168144714,9.0722,99.348,99.3,4.19442453]
[1770168144917,9.0722,99.348,99.245,30.24]
[1770168144918,4.1445585,99.347,99.278,401.78]
[1770168145210,4.1445585,99.347,99.273,4.19442453]
[1770168145412,4.1445585,99.369,99.282,4.19442453]
[1770168145617,4.1445585,99.369,99.284,4.19442453]
[1770168145814,9.0704,99.368,99.306,4.19442453]
[1770168146117,4.1445585,99.368,99.306,4.19442453]
[1770168146621,4.1445585,99.368,99.317,9.0749]
[1770168146825,4.1445585,99.368,99.287,4.19442453]
[1770168147218,4.1445585,99.368,99.304,9.0761]
[1770168147719,4.1445585,99.366,99.304,9.0761]
[1770168150817,9.0696,99.377,99.315,4.19442453]
[1770168151522,13.2141585,99.377,99.315,4.19442453]
[1770168151723,4.1445585,99.376,99.315,4.19442453]
[1770168151924,4.1445585,99.373,99.294,4.19442453]
[1770168153014,4.1445585,99.373,99.31,4.19442453]
[1770168154124,4.1445585,99.373,99.318,4.19442453]
[1770168155125,4.1445585,99.39,99.326,4.19442453]
[1770168157626,4.1445585,99.384,99.31,4.19442453]
[1770168158727,4.1445585,99.359,99.299,401.72]
[1770168158932,4.1445585,99.359,99.3,4.19442453]
[1770168159325,9.0713,99.358,99.308,9.0757]
[1770168159525,4.1445585,99.357,99.308,9.0757]
[1770168161132,4.1445585,99.357,99.311,9.0755]
[1770168161630,13.2159585,99.357,99.309,4.19442453]
[1770168162031,4.1445585,99.357,99.309,4.19442453]
[1770168162328,141.1294,99.344,99.256,37.01553208]
[1770168162535,8.11432506,99.32,99.256,37.01553208]
[1770168162835,9.0767,99.298,99.236,46.09793208]
[1770168163235,8.11432506,99.33,99.247,37.01973043]
[1770168163436,141.1407,99.336,99.257,37.01973043]
[1770168163629,141.1562,99.325,99.257,37.01973043]
[1770168164436,9.0748,99.32,99.257,37.01973043]
[1770168164840,9.0748,99.32,99.259,46.09991862]
[1770168165034,8.11432506,99.34,99.259,46.09991862]
[1770168165035,9.0738,99.33,99.259,46.09991862]
[1770168165735,9.0738,99.33,99.247,141.2659]
[1770168165736,9.0724,99.346,99.269,37.16802191]
[1770168165938,9.0724,99.346,99.272,37.16802191]
[1770168166234,9.0724,99.346,99.274,37.17044401]
[1770168166431,9.0724,99.346,99.281,37.17044401]
[1770168167238,9.0724,99.346,99.282,37.30112951]
[1770168167740,9.0724,99.346,99.289,9.0775]
[1770168169140,9.0733,99.336,99.282,37.30112951]
[1770168169940,9.0721,99.349,99.282,37.30112951]
[1770168170837,9.0729,99.34,99.282,37.30112951]
[1770168171438,9.0729,99.34,99.284,37.26284647]
[1770168171741,9.0719,99.351,99.284,37.26284647]
[1770168172737,9.0719,99.351,99.295,9.077]
[1770168174142,9.0719,99.351,99.295,46.33351258]
[1770168174342,9.0719,99.351,99.295,37.25651258]
[1770168176044,9.0728,99.341,99.285,9.0778]
[1770168176243,141.1226,99.349,99.276,37.25481755]
[1770168177148,141.1226,99.349,99.278,37.23053827]
[1770168177149,9.0737,99.331,99.278,37.23053827]
[1770168181647,9.0751,99.317,99.266,401.82]
[1770168181850,141.1951,99.298,99.23,37.22900037]
[1770168182054,8.11432506,99.3,99.23,37.22900037]
[1770168182554,9.38826503,99.308,99.224,401.82]
[1770168182555,9.38826503,99.308,99.233,37.22900037]
[1770168182851,8.11432506,99.32,99.235,37.22900037]
[1770168183055,141.1651,99.319,99.235,37.22900037]
[1770168183256,9.0769,99.296,99.235,46.31140037]
[1770168183459,9.0769,99.296,99.237,37.22039129]
[1770168183752,141.1522,99.328,99.237,37.22039129]
[1770168183753,8.11432506,99.3,99.237,37.22039129]
[1770168184455,141.1732,99.313,99.236,401.84]
[1770168184456,8.11432506,99.32,99.24,37.22039129]
[1770168184650,9.38826503,99.336,99.243,37.22039129]
[1770168184855,141.1366,99.339,99.245,37.22039129]
[1770168185053,9.074,99.328,99.263,37.22039129]
[1770168185350,9.074,99.328,99.247,141.2655]
[1770168185351,9.38826503,99.357,99.266,37.32325241]
[1770168185550,150.48186503,99.369,99.276,37.32325241]
[1770168186254,9.0716,99.355,99.298,37.32325241]
[1770168189949,141.1092,99.358,99.269,37.34316774]
[1770168190149,8.11432506,99.35,99.269,37.34316774]
[1770168190348,8.11432506,99.37,99.281,37.34316774]
[1770168191555,9.0718,99.353,99.292,37.328898]
[1770168194349,141.1228,99.349,99.292,37.328898]
[1770168194549,141.1098,99.358,99.292,37.328898]
[1770168195161,9.0728,99.342,99.292,37.328898]
[1770168199657,9.0718,99.352,99.297,37.31867965]
[1770168199966,141.0916,99.371,99.297,37.31867965]
[1770168201567,9.0718,99.353,99.3,37.32574767]
[1770168201863,9.0685,99.388,99.335,37.32574767]
[1770168202463,9.0684,99.389,99.338,37.32574767]
[1770168203770,9.0684,99.389,99.34,37.31410269]
[1770168204869,9.0684,99.389,99.342,37.31410269]
[1770168205071,9.0674,99.401,99.342,37.31410269]
[1770168206274,9.0674,99.401,99.345,37.31808148]
[1770168206477,9.38826503,99.423,99.345,37.31808148]
[1770168206478,9.0665,99.41,99.345,37.31808148]
[1770168206981,9.0665,99.41,99.357,37.31808148]
[1770168208570,3.24304169,99.4,99.357,37.31808148]
[1770168209677,12.30954169,99.41,99.357,37.31808148]
[1770168210675,3.24304169,99.43,99.36,37.30265298]
[1770168210878,3.24304169,99.42,99.36,40.54569467]
[1770168211873,3.24304169,99.42,99.366,37.30218681]
[1770168212071,172.02,99.461,99.366,37.30218681]
[1770168212072,3.24304169,99.41,99.366,37.30218681]
[1770168212271,3.24304169,99.4,99.353,401.7]
[1770168212468,3.24304169,99.4,99.354,37.30218681]
[1770168213181,3.24304169,99.39,99.354,37.30218681]
[1770168213473,3.24304169,99.38,99.354,37.30218681]
[1770168214180,141.0153,99.424,99.354,37.30218681]
[1770168214181,3.24304169,99.39,99.354,37.30218681]
[1770168214380,12.31054169,99.4,99.354,37.30218681]
[1770168216279,3.24304169,99.39,99.354,37.30218681]
[1770168217286,12.31054169,99.4,99.354,37.30218681]
[1770168220989,3.24304169,99.39,99.354,37.30218681]
[1770168221992,141.0153,99.424,99.321,37.27799339]
[1770168221993,3.24304169,99.37,99.321,37.27799339]
[1770168222191,3.24304169,99.37,99.269,141.235]
[1770168222192,3.24304169,99.33,99.271,37.27799339]
[1770168223195,3.24304169,99.33,99.289,37.28068939]
[1770168224094,3.24304169,99.33,99.262,240.86]
[1770168224095,3.24304169,99.32,99.263,37.28068939]
[1770168224598,3.24304169,99.32,99.275,37.28068939]
[1770168225093,3.24304169,99.31,99.275,37.28068939]
[1770168225690,141.1187,99.352,99.275,37.28068939]
[1770168226000,141.1045,99.362,99.278,37.35149439]
[1770168226001,3.24304169,99.33,99.278,37.35149439]
[1770168226497,3.24304169,99.34,99.278,37.35149439]
[1770168226699,3.24304169,99.34,99.281,37.35149439]
[1770168227093,3.24304169,99.34,99.286,37.35094991]
[1770168227293,3.24304169,99.32,99.286,37.35094991]
[1770168230795,3.24304169,99.33,99.286,37.35094991]
[1770168232799,3.24304169,99.33,99.27,3.24304169]
[1770168232800,3.24304169,99.33,99.288,37.35603293]
[1770168233604,141.1013,99.364,99.288,37.35603293]
[1770168233605,3.24304169,99.32,99.288,37.35603293]
[1770168233802,3.24304169,99.31,99.263,37.35609776]
[1770168234000,3.24304169,99.3,99.263,37.35609776]
[1770168237805,9.0757,99.309,99.263,37.35609776]
[1770168238795,141.1482,99.331,99.263,37.35609776]
[1770168239002,3.24304169,99.31,99.263,37.35609776]
[1770168239705,9.0758,99.309,99.263,37.35609776]
[1770168242201,3.24304169,99.3,99.263,37.35609776]
[1770168243610,3.24304169,99.29,99.246,37.54181969]
[1770168243908,12.31964169,99.3,99.248,37.54181969]
[1770168244498,3.24304169,99.31,99.254,37.54181969]
[1770168245297,3.24304169,99.31,99.257,37.52593437]
[1770168246705,3.24304169,99.31,99.259,37.52593437]
[1770168247812,3.24304169,99.31,99.261,37.52468189]
[1770168248206,3.24304169,99.31,99.264,37.52468189]
[1770168248911,3.24304169,99.32,99.268,37.52468189]
[1770168249408,3.24304169,99.32,99.271,37.54014111]
[1770168250714,3.24304169,99.32,99.277,37.54014111]
[1770168251115,9.0743,99.325,99.277,37.54014111]
[1770168251312,9.0743,99.325,99.28,37.54834528]
[1770168251512,141.0904,99.372,99.28,37.54834528]
[1770168251513,9.0735,99.334,99.28,37.54834528]
[1770168252610,3.24304169,99.34,99.293,37.54834528]
[1770168254219,3.24304169,99.34,99.295,37.55100154]
[1770168260923,3.24304169,99.33,99.295,37.55100154]
[1770168261920,3.24304169,99.31,99.261,37.5140258]
[1770168262113,141.1613,99.322,99.247,37.5140258]
[1770168262319,3.24304169,99.3,99.247,37.5140258]
[1770168262524,9.0767,99.299,99.249,37.5140258]
[1770168262726,3.24304169,99.29,99.249,37.5140258]
[1770168263317,3.24304169,99.28,99.249,37.5140258]
[1770168263521,3.24304169,99.29,99.249,37.5140258]
[1770168263819,9.0776,99.288,99.249,37.5140258]
[1770168264020,3.24304169,99.28,99.249,37.5140258]
[1770168264420,3.25074324,99.28,99.249,37.5140258]
[1770168264919,141.1613,99.322,99.249,37.5140258]
[1770168265120,3.25074324,99.3,99.249,37.5140258]
[1770168265525,3.25074324,99.29,99.249,37.5140258]
[1770168267026,3.25074324,99.3,99.249,46.5951258]
[1770168267417,9.0759,99.308,99.249,46.5951258]
[1770168267614,9.0759,99.308,99.252,9.0809]
[1770168267817,9.0759,99.308,99.253,37.50077256]
[1770168268017,9.34586437,99.341,99.253,37.50077256]
[1770168268018,9.075,99.318,99.253,37.50077256]
[1770168268422,3.25074324,99.32,99.267,37.50077256]
[1770168268617,9.074,99.328,99.267,37.50077256]
[1770168268819,9.34586437,99.357,99.271,37.50077256]
[1770168269024,3.25074324,99.33,99.271,37.50077256]
[1770168269326,3.25074324,99.33,99.28,37.50315218]
[1770168269624,9.0731,99.338,99.28,40.75389542]
[1770168270427,3.25074324,99.36,99.291,37.50315218]
[1770168270627,3.25074324,99.36,99.301,37.50315218]
[1770168271725,3.25074324,99.36,99.307,37.50147316]
[1770168273225,3.25074324,99.35,99.307,37.50147316]
[1770168273428,3.25074324,99.34,99.307,37.50147316]
[1770168273728,3.25074324,99.35,99.307,37.50147316]
[1770168274718,3.25074324,99.35,99.296,9.0769]
[1770168274918,3.25074324,99.34,99.297,37.48136458]
[1770168276128,141.0876,99.374,99.297,37.48136458]
[1770168276129,3.25074324,99.35,99.297,37.48136458]
[1770168277831,3.25074324,99.35,99.3,37.44438418]
[1770168278531,3.25074324,99.33,99.3,37.44438418]
[1770168278733,3.25074324,99.33,99.271,37.44438418]
[1770168278930,3.25074324,99.32,99.271,37.44438418]
[1770168279232,3.25074324,99.29,99.256,37.44330252]
[1770168279826,3.25074324,99.3,99.256,37.44330252]
[1770168280536,3.25074324,99.31,99.256,37.44330252]
[1770168280935,141.1366,99.339,99.261,37.44330252]
[1770168280936,3.25074324,99.33,99.261,37.44330252]
[1770168281137,9.074,99.328,99.263,37.44330252]
[1770168281937,3.25074324,99.31,99.263,37.44330252]
[1770168282526,141.135,99.34,99.263,37.44330252]
[1770168282527,9.0758,99.308,99.263,37.44330252]
[1770168282732,3.25074324,99.31,99.263,37.44330252]
[1770168283729,9.0747,99.32,99.263,37.44330252]
[1770168283939,3.25074324,99.32,99.265,37.38658292]
[1770168284234,3.25074324,99.33,99.271,37.38658292]
[1770168284446,3.25074324,99.32,99.271,37.38658292]
[1770168284739,3.25074324,99.3,99.271,37.38658292]
[1770168286340,3.25074324,99.3,99.24,9.19606733]
[1770168286341,3.25074324,99.29,99.24,9.19606733]
[1770168286532,3.25074324,99.26,99.207,9.19606733]
[1770168286733,3.25074324,99.26,99.2,3.25074324]
[1770168286940,9.0805,99.257,99.197,9.086]
[1770168287136,3.25074324,99.25,99.197,9.086]
[1770168287441,141.2194,99.281,99.197,9.086]
[1770168287442,3.25074324,99.26,99.197,9.086]
[1770168288234,141.1938,99.299,99.211,24.90046201]
[1770168288440,3.25074324,99.28,99.221,24.90046201]
[1770168288634,3.25074324,99.29,99.221,24.90046201]
[1770168289036,9.0781,99.283,99.223,24.90046201]
[1770168289237,3.25074324,99.28,99.223,24.90046201]
[1770168289839,3.25074324,99.28,99.226,24.94973699]
[1770168290335,3.25074324,99.27,99.226,24.94973699]
[1770168290536,3.25074324,99.26,99.226,24.94973699]
[1770168290736,3.25074324,99.25,99.198,401.92]
[1770168290937,141.207,99.289,99.202,9.0854]
[1770168290938,3.25074324,99.26,99.202,9.0854]
[1770168292639,9.0797,99.266,99.207,9.085]
[1770168292841,3.25074324,99.27,99.211,12.45548336]
[1770168293636,9.0795,99.268,99.215,12.43987737]
[1770168296641,3.25074324,99.27,99.217,12.44010029]
[1770168297740,3.25074324,99.27,99.219,12.3966882]
[1770168298142,3.25074324,99.25,99.208,12.3966882]
[1770168300344,3.25074324,99.23,99.192,12.38479473]
[1770168300744,12.33284324,99.24,99.192,12.38479473]
[1770168300938,9.0831,99.229,99.192,12.38479473]
[1770168301536,9.084,99.219,99.187,402.04]
[1770168301744,3.25074324,99.21,99.159,12.39721764]
[1770168302139,3.25074324,99.2,99.144,402.06]
[1770168302343,3.25074324,99.2,99.137,14.14885288]
[1770168302344,3.25074324,99.18,99.137,12.39721764]
[1770168302739,12.33834324,99.18,99.137,12.39721764]
[1770168303844,3.25074324,99.18,99.137,12.39721764]
[1770168304643,3.25074324,99.17,99.119,12.39730608]
[1770168305543,3.25074324,99.18,99.121,12.4970022]
[1770168306544,141.2864,99.234,99.141,12.4970022]
[1770168306545,9.0863,99.194,99.141,12.4970022]
[1770168306754,141.2875,99.233,99.141,12.4970022]
[1770168306941,3.25074324,99.21,99.151,12.4970022]
[1770168307947,3.25074324,99.21,99.152,12.49617321]
[1770168308350,141.3014,99.223,99.152,12.49617321]
[1770168308649,8.14029375,99.23,99.152,12.49617321]
[1770168309348,8.14029375,99.23,99.164,12.50384722]
[1770168309550,8.14029375,99.25,99.166,12.50384722]
[1770168309949,141.2442,99.263,99.183,12.50384722]
[1770168310653,141.2518,99.258,99.183,12.50384722]
[1770168311650,9.0819,99.242,99.183,12.50384722]
[1770168312360,8.14029375,99.27,99.195,12.49703558]
[1770168312651,141.2262,99.276,99.176,141.3665]
[1770168312652,8.14029375,99.29,99.198,12.49703558]
[1770168312860,141.1862,99.304,99.212,12.49703558]
[1770168313050,9.0769,99.296,99.23,12.49703558]
[1770168313254,141.1682,99.317,99.23,12.49703558]
[1770168313255,141.2074,99.289,99.23,12.49703558]
[1770168313453,141.2261,99.276,99.207,107.58]
[1770168313652,141.2261,99.276,99.208,12.36449486]
[1770168313949,141.2445,99.263,99.207,107.58]
[1770168314155,141.2445,99.263,99.187,12.36449486]
[1770168314855,9.081,99.252,99.187,12.36449486]
[1770168315054,9.081,99.252,99.19,12.36449486]
[1770168315647,8.14029375,99.29,99.198,12.32046312]
[1770168315851,8.14029375,99.29,99.199,12.32046312]
[1770168316356,9.0787,99.277,99.217,9.084]
[1770168316655,8.14029375,99.29,99.218,12.32046312]
[1770168316656,141.217,99.282,99.218,12.32046312]
[1770168317554,141.2278,99.275,99.199,12.30955189]
[1770168317751,8.14029375,99.27,99.199,12.30955189]
[1770168318755,9.0805,99.257,99.199,12.30955189]
[1770168319853,9.0814,99.247,99.183,9.0872]
[1770168320151,141.2458,99.262,99.183,9.0872]
[1770168320152,8.14029375,99.25,99.183,12.30337537]
[1770168321157,141.2737,99.243,99.183,12.30337537]
[1770168321458,8.14029375,99.25,99.183,12.30337537]
[1770168322659,9.0822,99.239,99.183,12.30337537]
[1770168326962,9.0829,99.231,99.183,12.30337537]
[1770168327263,141.3163,99.213,99.143,12.27786442]
[1770168327653,141.3021,99.223,99.133,12.27786442]
[1770168327654,8.13465035,99.2,99.133,12.27786442]
[1770168327858,141.3072,99.219,99.133,12.27786442]
[1770168328260,141.2869,99.233,99.143,12.27786442]
[1770168328561,141.2869,99.233,99.13,149.56775035]
[1770168328562,8.13465035,99.24,99.147,12.27786442]
[1770168328953,9.0837,99.222,99.161,12.27786442]
[1770168329358,9.0837,99.222,99.163,12.2755195]
[1770168329560,9.0829,99.231,99.163,12.2755195]
[1770168329763,141.274,99.242,99.163,12.2755195]
[1770168330465,3.25448467,99.23,99.163,12.2755195]
[1770168330765,3.25448467,99.22,99.163,12.2755195]
[1770168331657,141.274,99.242,99.163,12.2755195]
[1770168331658,3.25448467,99.21,99.163,12.2755195]
[1770168331873,3.25448467,99.22,99.163,12.2755195]
[1770168332065,9.0832,99.228,99.165,12.27581251]
[1770168332362,3.25448467,99.22,99.165,12.27581251]
[1770168333760,9.084,99.219,99.165,12.27581251]
[1770168334066,3.25448467,99.21,99.165,12.27581251]
[1770168335065,3.25448467,99.2,99.165,12.27581251]
[1770168336165,9.0861,99.196,99.149,12.26177381]
[1770168337368,9.0851,99.207,99.151,9.0901]
[1770168337665,3.25448467,99.2,99.152,12.24808973]
[1770168338068,9.0862,99.195,99.152,12.24808973]
[1770168338266,3.25448467,99.2,99.152,12.24808973]
[1770168338766,3.25448467,99.21,99.152,12.24808973]
[1770168338966,9.086,99.197,99.152,12.24808973]
[1770168339965,9.0867,99.189,99.152,12.24808973]
[1770168340672,3.25448467,99.19,99.152,12.24808973]
[1770168340866,9.0859,99.198,99.152,12.24808973]
[1770168342066,9.0851,99.207,99.152,12.24808973]
[1770168342660,3.25448467,99.23,99.161,12.25102742]
[1770168343672,9.0834,99.226,99.171,12.24735732]
[1770168343868,168.64,99.267,99.171,12.24735732]
[1770168344068,3.25448467,99.24,99.171,12.24735732]
[1770168344367,9.0825,99.235,99.183,12.24735732]
[1770168344672,3.25448467,99.25,99.191,12.24735732]
[1770168344871,3.25448467,99.24,99.193,12.24735732]
[1770168346269,3.25448467,99.23,99.171,12.17283863]
[1770168346468,141.2654,99.248,99.171,12.17283863]
[1770168347667,9.0833,99.227,99.171,12.17283863]
[1770168348871,141.2654,99.248,99.171,12.17283863]
[1770168348872,9.0841,99.218,99.171,12.17283863]
[1770168350177,9.0848,99.21,99.158,402.32]
[1770168350371,8.13626914,99.23,99.159,12.17241682]
[1770168350570,141.2789,99.239,99.159,12.17241682]
[1770168350770,141.2654,99.248,99.159,12.17241682]
[1770168351171,8.13626914,99.25,99.159,12.17241682]
[1770168352472,8.13626914,99.25,99.166,12.16836594]
[1770168352869,9.0808,99.254,99.197,12.16836594]
[1770168353180,141.2087,99.288,99.197,12.16836594]
[1770168353376,141.2028,99.292,99.205,12.18012991]
[1770168353870,8.13626914,99.3,99.22,12.18012991]
[1770168354382,9.0784,99.28,99.22,12.18012991]
[1770168354673,141.1999,99.295,99.22,12.18012991]
[1770168354878,9.0774,99.291,99.22,12.18012991]
[1770168355178,149.29946914,99.32,99.22,12.18012991]
[1770168355380,9.0764,99.302,99.234,12.17880099]
[1770168358381,9.0773,99.292,99.234,12.17880099]
[1770168360584,9.0783,99.282,99.234,12.17880099]
[1770168360777,8.13626914,99.3,99.234,12.17880099]
[1770168361085,8.13626914,99.32,99.234,12.17880099]
[1770168361280,8.13626914,99.34,99.244,12.148864]
[1770168361479,8.13626914,99.34,99.246,12.148864]
[1770168362682,9.0744,99.324,99.255,12.148864]
[1770168362882,141.1235,99.348,99.257,12.148864]
[1770168363084,141.1087,99.359,99.265,12.148864]
[1770168363283,141.1087,99.359,99.277,12.14810055]
[1770168363284,9.0732,99.337,99.277,12.14810055]
[1770168364883,9.3544313,99.375,99.279,12.14810055]
[1770168365086,153.52892074,99.389,99.275,141.2264]
[1770168365087,8.13626914,99.38,99.291,12.14810055]
[1770168365780,9.0703,99.369,99.314,12.15309559]
[1770168366181,141.0867,99.374,99.314,12.15309559]
[1770168367386,141.1004,99.365,99.292,12.16086492]
[1770168367685,141.1035,99.362,99.292,12.16086492]
[1770168367882,8.13626914,99.35,99.261,12.16086492]
[1770168368085,141.1294,99.344,99.261,12.16086492]
[1770168368383,141.1402,99.336,99.261,12.16086492]
[1770168368584,9.074,99.328,99.263,9.0799]
[1770168368784,9.074,99.328,99.264,12.16086492]
[1770168369182,9.0749,99.319,99.264,12.16086492]
[1770168369382,141.169,99.316,99.264,12.16086492]
[1770168369585,141.169,99.316,99.238,12.13279554]
[1770168369787,8.13626914,99.33,99.241,12.13279554]
[1770168370187,8.13626914,99.33,99.239,401.98]
[1770168370188,8.13626914,99.33,99.249,12.13279554]
[1770168370487,9.0745,99.323,99.255,12.13279554]
[1770168371484,141.1343,99.341,99.268,12.12769133]
[1770168372388,9.0745,99.322,99.268,12.12769133]
[1770168373285,9.0737,99.332,99.27,12.14545664]
[1770168374487,3.24829832,99.32,99.27,12.14545664]
[1770168374792,3.24829832,99.32,99.276,12.14545664]
[1770168375190,9.0737,99.332,99.276,12.14545664]
[1770168375390,3.24829832,99.33,99.276,12.14545664]
[1770168375589,3.24829832,99.33,99.279,9.0784]
[1770168375784,3.24829832,99.33,99.28,12.13940696]
[1770168376287,9.0727,99.342,99.28,12.13940696]
[1770168376586,9.0727,99.342,99.27,3.24829832]
[1770168376587,3.24829832,99.37,99.301,12.13940696]
[1770168377186,141.0536,99.397,99.303,12.13796391]
[1770168377187,3.24829832,99.35,99.303,12.13796391]
[1770168377588,3.24829832,99.37,99.303,12.13796391]
[1770168377782,3.24829832,99.36,99.303,12.13796391]
[1770168378488,141.0836,99.376,99.303,12.13796391]
[1770168378888,141.0894,99.372,99.303,12.13796391]
[1770168379292,8.11529915,99.38,99.305,12.06411958]
[1770168379793,141.065,99.389,99.317,9.0749]
[1770168379993,141.065,99.389,99.305,12.06411958]
[1770168379994,9.071,99.361,99.305,12.06411958]
[1770168380391,8.11529915,99.38,99.305,12.06411958]
[1770168381396,9.0701,99.371,99.317,12.0580861]
[1770168381995,9.0701,99.371,99.29,8.11529915]
[1770168381996,140.9797,99.45,99.353,12.0580861]
[1770168382191,140.9843,99.446,99.354,12.0580861]
[1770168383297,9.0651,99.426,99.361,21.19113909]
[1770168383797,9.066,99.416,99.361,12.12023909]
[1770168384298,8.11529915,99.42,99.361,12.12023909]
[1770168384895,9.0669,99.406,99.361,12.12023909]
[1770168385796,9.0659,99.417,99.361,12.12023909]
[1770168385996,8.11529915,99.44,99.361,12.12023909]
[1770168386393,9.0649,99.428,99.361,12.12023909]
[1770168386897,140.9905,99.442,99.361,12.12023909]
[1770168386898,9.0658,99.419,99.361,12.12023909]
[1770168387500,141.0396,99.407,99.339,12.10746627]
[1770168388198,9.0686,99.387,99.321,21.18196627]
[1770168388499,8.10460726,99.39,99.321,12.10746627]
[1770168388800,9.0672,99.403,99.332,9.0735]
[1770168389000,9.0672,99.403,99.333,12.10746627]
[1770168389202,141.0083,99.429,99.322,542.88]
[1770168389203,141.0083,99.429,99.339,12.064256]
[1770168390798,9.0662,99.414,99.351,12.064256]
[1770168392899,9.0673,99.402,99.351,12.064256]
[1770168393995,141.0383,99.408,99.351,12.064256]
[1770168394392,8.10460726,99.39,99.296,12.06728681]
[1770168394592,141.0958,99.368,99.296,12.06728681]
[1770168394792,141.111,99.357,99.296,12.06728681]
[1770168395196,9.073,99.339,99.296,12.06728681]
[1770168395394,141.1324,99.342,99.251,141.2609]
[1770168395592,8.10460726,99.35,99.252,141.2583]
[1770168395790,9.0743,99.325,99.269,9.0793]
[1770168396192,141.1231,99.348,99.269,9.0793]
[1770168396397,141.1231,99.348,99.2,18.1713]
[1770168396398,141.1056,99.361,99.287,9.0776]
[1770168396599,8.10460726,99.37,99.272,141.231]
[1770168396600,141.0933,99.369,99.272,141.231]
[1770168396804,141.0933,99.369,99.276,141.2252]
[1770168397504,141.0824,99.377,99.299,6.04061346]
[1770168397697,141.1004,99.364,99.299,6.04061346]
[1770168398098,8.10460726,99.37,99.299,6.04061346]
[1770168398099,9.072,99.351,99.299,6.04061346]
[1770168401700,9.0728,99.341,99.283,288.28]
[1770168402004,141.1204,99.35,99.283,288.28]
[1770168402901,9.0735,99.334,99.283,288.28]
[1770168403099,141.1338,99.341,99.283,288.28]
[1770168403901,9.0743,99.324,99.283,288.28]
[1770168404308,9.0743,99.324,99.279,6.05632421]
[1770168406718,9.0734,99.335,99.279,6.05632421]
[1770168407110,141.1307,99.343,99.279,6.05632421]
[1770168407716,141.1226,99.349,99.279,6.05632421]
[1770168407717,9.0742,99.326,99.279,6.05632421]
[1770168408314,9.0752,99.316,99.279,6.05632421]
[1770168408715,1.64005631,99.325,99.253,401.76]
[1770168408915,1.64005631,99.325,99.206,141.3248]
[1770168408916,1.64005631,99.314,99.223,401.8]
[1770168409416,141.1581,99.324,99.223,401.8]
[1770168409417,9.077,99.296,99.233,9.0826]
[1770168409714,1.64000832,99.304,99.223,401.8]
[1770168410315,1.64000832,99.289,99.223,401.8]
[1770168410516,1.64000832,99.289,99.205,401.82]
[1770168410716,1.64000832,99.289,99.206,3.68878018]
[1770168410916,1.64000832,99.289,99.208,3.68878018]
[1770168411514,1.64000832,99.289,99.225,3.68878018]
[1770168411515,9.0779,99.286,99.225,3.68878018]
[1770168411712,1.66600009,99.31,99.225,3.68878018]
[1770168412419,1.66600009,99.31,99.22,149.40950726]
[1770168412420,9.077,99.296,99.24,3.68878018]
[1770168413618,1.66750451,99.281,99.219,3.68878018]
[1770168414021,1.66750451,99.274,99.219,3.68878018]
[1770168415422,9.0796,99.268,99.219,3.68878018]
[1770168417316,9.0804,99.259,99.219,3.68878018]
[1770168418819,9.08,99.263,99.219,3.68878018]
[1770168419620,9.0808,99.254,99.192,3.82332615]
[1770168420124,9.0814,99.247,99.192,3.82332615]
[1770168420321,10.3136387,99.247,99.192,3.82332615]
[1770168420523,149.33910726,99.27,99.192,3.82332615]
[1770168420524,1.2322387,99.246,99.192,3.82332615]
[1770168420920,141.2758,99.241,99.174,3.82332615]
[1770168421120,1.2322387,99.24,99.174,3.82332615]
[1770168421526,9.0838,99.221,99.174,3.82332615]
[1770168422022,9.0829,99.231,99.174,3.82332615]
[1770168422226,1.22211237,99.254,99.175,3.82332615]
[1770168422827,1.22211237,99.242,99.176,3.82332615]
[1770168423331,9.0824,99.236,99.179,3.82332615]
[1770168423828,9.0804,99.258,99.191,3.82332615]
[1770168424327,1.06275775,99.267,99.199,3.82332615]
[1770168424822,1.06275775,99.289,99.199,3.82332615]
[1770168425027,9.0787,99.277,99.214,3.82332615]
[1770168425331,1.02494808,99.282,99.214,3.82332615]
[1770168425930,1.02494808,99.282,99.216,3.82332615]
[1770168426831,9.0785,99.28,99.22,3.82332615]
[1770168427732,1.01052895,99.279,99.22,3.82332615]